fUST/lending_fUST_20250423
["ID","MTS","AMOUNT","RATE_DAILY","PERIOD"]
[358704557,1745394633949,-500.0,0.00020495,2]
[358704558,1745394633959,-500.0,0.00020495,2]
[358704559,1745394633969,-500.0,0.00020495,2]
[358704560,1745394633979,-528.44508723,0.00020495,2]
[358704561,1745394633988,-500.0,0.00020495,2]
[358704562,1745394633998,-500.0,0.00020495,2]
[358704563,1745394634162,-500.0,0.00020495,2]
[358704564,1745394634173,-500.0,0.00020495,2]
[358704565,1745394634183,-500.0,0.00020495,2]
[358704566,1745394634193,-500.0,0.00020495,2]
[358704567,1745394634203,-555.24,0.00020495,2]
[358704568,1745394634213,-500.0,0.00020495,2]
[358704569,1745394634222,-500.0,0.00020495,2]
[358704570,1745394634232,-500.0,0.00020495,2]
[358704571,1745394634242,-500.0,0.00020495,2]
[358704572,1745394634251,-500.0,0.00020495,2]
[358704573,1745394634261,-508.04,0.00020495,2]
[358704574,1745394634271,-500.0,0.00020495,2]
[358704575,1745394634281,-296.76992231,0.00020495,2]
[358704576,1745394634291,-500.0,0.00020495,2]
[358704577,1745394634301,-500.0,0.00020495,2]
[358704578,1745394634311,-500.0,0.00020495,2]
[358704579,1745394634321,-520.31,0.00020495,2]
[358704580,1745394634330,-500.0,0.00020495,2]
[358704581,1745394634340,-500.0,0.00020495,2]
[358704582,1745394634355,-500.0,0.00020495,2]
[358704583,1745394634364,-500.0,0.00020495,2]
[358704584,1745394634374,-500.0,0.00020495,2]
[358704585,1745394634384,-500.0,0.00020495,2]
[358704586,1745394634395,-500.0,0.00020495,2]
[358704587,1745394634404,-500.0,0.00020495,2]
[358704588,1745394634414,-544.15371471,0.00020495,2]
[358704589,1745394634423,-500.0,0.00020495,2]
[358704590,1745394634434,-500.0,0.00020495,2]
[358704591,1745394634444,-500.0,0.00020495,2]
[358704592,1745394634454,-500.0,0.00020495,2]
[358704593,1745394634464,-500.0,0.00020495,2]
[358704594,1745394634473,-500.0,0.00020495,2]
[358704595,1745394634483,-500.0,0.00020495,2]
[358704596,1745394634492,-500.0,0.00020495,2]
[358704597,1745394634502,-500.0,0.00020495,2]
[358704598,1745394634512,-508.35476967,0.00020495,2]
[358704599,1745394634521,-500.0,0.00020495,2]
[358704600,1745394634532,-500.0,0.00020495,2]
[358704601,1745394634541,-500.0,0.00020495,2]
[358704602,1745394634551,-500.0,0.00020495,2]
[358704603,1745394634562,-500.0,0.00020495,2]
[358704604,1745394634571,-512.86429118,0.00020495,2]
[358704605,1745394634581,-500.0,0.00020495,2]
[358704606,1745394634591,-500.0,0.00020495,2]
[358704607,1745394634600,-500.0,0.00020495,2]
[358704608,1745394634610,-500.0,0.00020495,2]
[358704609,1745394634631,-500.0,0.00020495,2]
[358704610,1745394634641,-507.2549458,0.00020495,2]
[358704611,1745394634650,-511.31740479,0.00020495,2]
[358704612,1745394634660,-500.0,0.00020495,2]
[358704613,1745394634671,-500.0,0.00020495,2]
[358704614,1745394634681,-500.0,0.00020495,2]
[358704615,1745394634692,-500.0,0.00020495,2]
[358704616,1745394634702,-500.0,0.00020495,2]
[358704617,1745394634712,-500.47847798,0.00020495,2]
[358704618,1745394634722,-500.0,0.00020495,2]
[358704619,1745394634732,-500.0,0.00020495,2]
[358704620,1745394634742,-500.0,0.00020495,2]
[358704621,1745394634753,-2287.33,0.00020495,2]
[358704622,1745394634763,-500.0,0.00020495,2]
[358704623,1745394634773,-500.0,0.00020495,2]
[358704624,1745394634783,-502.44431671,0.00020495,2]
[358704625,1745394634793,-500.0,0.00020495,2]
[358704626,1745394634803,-500.0,0.00020495,2]
[358704627,1745394634813,-487.77116915,0.00020495,2]
[358704628,1745394634823,-500.0,0.00020495,2]
[358704629,1745394634834,-500.0,0.00020495,2]
[358704630,1745394634844,-500.0,0.00020495,2]
[358704631,1745394634853,-500.0,0.00020495,2]
[358704632,1745394634863,-500.0,0.00020495,2]
[358704633,1745394634872,-508.63061602,0.00020495,2]
[358704634,1745394634882,-543.44140338,0.00020495,2]
[358704635,1745394634892,-500.0,0.00020495,2]
[358704636,1745394634902,-500.0,0.00020495,2]
[358704637,1745394634911,-500.0,0.00020495,2]
[358704638,1745394634921,-500.0,0.00020495,2]
[358704639,1745394634931,-500.0,0.00020495,2]
[358704640,1745394634941,-500.0,0.00020495,2]
[358704641,1745394634951,-582.5,0.00020495,2]
[358704642,1745394634961,-502.1583841,0.00020495,2]
[358704643,1745394634971,-500.0,0.00020495,2]
[358704644,1745394634982,-500.0,0.00020495,2]
[358704645,1745394634991,-500.0,0.00020495,2]
[358704646,1745394635001,-500.0,0.00020495,2]
[358704647,1745394635011,-500.0,0.00020495,2]
[358704648,1745394635021,-500.0,0.00020495,2]
[358704649,1745394635030,-500.0,0.00020495,2]
[358704650,1745394635040,-500.0,0.00020495,2]
[358704651,1745394635049,-500.0,0.00020495,2]
[358704652,1745394635060,-500.0,0.00020495,2]
[358704653,1745394635069,-500.0,0.00020495,2]
[358704654,1745394635079,-321.82480374,0.00020495,2]
[358704655,1745394635088,-1480.1,0.00020495,2]
[358704656,1745394635098,-500.0,0.00020495,2]
[358704657,1745394635107,-500.0,0.00020495,2]
[358704658,1745394635117,-500.0,0.00020495,2]
[358704659,1745394635127,-500.0,0.00020495,2]
[358704660,1745394635137,-509.60070319,0.00020495,2]
[358704661,1745394635146,-500.0,0.00020495,2]
[358704662,1745394635156,-500.0,0.00020495,2]
[358704663,1745394635166,-286.856,0.00020496,2]
[358704664,1745394635176,-244.89296652,0.00020498,2]
[358704665,1745394635185,-500.0,0.00020498,2]
[358704666,1745394635195,-168.32634055,0.00020498,2]
[358704667,1745394635205,-221.42022018,0.00020498,2]
[358704668,1745394635214,-500.0,0.00020498,2]
[358704669,1745394635224,-570.09261079,0.00020498,2]
[358704670,1745394635233,-380.53729815,0.00020498,2]
[358704671,1745394635243,-500.0,0.00020498,2]
[358704672,1745394635252,-151.0,0.00020498,2]
[358704673,1745394635262,-272.2222442,0.00020498,2]
[358704674,1745394635271,-500.0,0.00020498,2]
[358704675,1745394635281,-151.0,0.00020498,2]
[358704676,1745394635291,-151.0,0.00020498,2]
[358704677,1745394635300,-78034.70266101,0.00020499,2]
[358704687,1745394638030,-500.0,0.00020471,2]
[358704689,1745394638040,-500.0,0.00020471,2]
[358704691,1745394638050,-475.53809944,0.00020471,2]
[358704694,1745394638061,-24.46190056,0.00020471,2]
[358704696,1745394638071,-500.0,0.00020471,2]
[358704697,1745394638080,-500.0,0.00020471,2]
[358704699,1745394638090,-500.0,0.00020471,2]
[358704700,1745394638099,-180.74147046,0.00020471,2]
[358704701,1745394638109,-500.0,0.00020471,2]
[358704702,1745394638119,-500.0,0.00020471,2]
[358704703,1745394638128,-500.0,0.00020471,2]
[358704704,1745394638138,-500.0,0.00020471,2]
[358704705,1745394638147,-500.0,0.00020471,2]
[358704706,1745394638156,-500.0,0.00020471,2]
[358704707,1745394638166,-500.0,0.00020471,2]
[358704708,1745394638175,-500.0,0.00020471,2]
[358704709,1745394638184,-500.0,0.00020471,2]
[358704710,1745394638194,-500.0,0.00020472,2]
[358704711,1745394638203,-500.0,0.00020494,2]
[358704712,1745394638213,-439.8297028,0.00020494,2]
[358704713,1745394638230,-60.1702972,0.00020494,2]
[358704714,1745394638239,-500.0,0.00020495,2]
[358704715,1745394638249,-500.0,0.00020495,2]
[358704716,1745394638258,-96871.42001026,0.00020499,2]
[358704718,1745394638278,-188420.94999568,0.00020499,2]
[358704740,1745394640443,-479.93791128,0.00020471,2]
[358704743,1745394640633,-20.06208872,0.00020471,2]
[358704744,1745394640643,-500.0,0.00020472,2]
[358704745,1745394640653,-500.0,0.00020472,2]
[358704746,1745394640662,-500.0,0.00020472,2]
[358704747,1745394640672,-2121.64440731,0.00020499,2]
[358704759,1745394645287,-500.0,0.00020471,2]
[358704760,1745394645298,-500.0,0.00020494,2]
[358704761,1745394645309,-500.0,0.00020494,2]
[358704762,1745394645319,-4551.28292574,0.00020499,2]
[358704763,1745394645329,-151.0,0.00020499,2]
[358704764,1745394645338,-3132.27112139,0.000205,3]
[358704765,1745394645349,-254.63821314,0.00020549,2]
[358704767,1745394645361,-594.5569643,0.00020597,2]
[358704768,1745394645371,-500.0,0.00020597,2]
[358704769,1745394645381,-509.15203663,0.00020597,2]
[358704770,1745394645391,-500.0,0.00020597,2]
[358704771,1745394645401,-500.0,0.00020597,2]
[358704772,1745394645411,-500.0,0.00020597,2]
[358704773,1745394645421,-509.82837839,0.00020597,2]
[358704774,1745394645431,-500.0,0.00020597,2]
[358704775,1745394645442,-202.39061212,0.00020597,2]
[358704776,1745394645452,-500.0,0.00020597,2]
[358704777,1745394645462,-500.0,0.00020597,2]
[358704778,1745394645473,-500.0,0.00020597,2]
[358704779,1745394645483,-500.0,0.00020597,2]
[358704780,1745394645493,-500.0,0.00020597,2]
[358704781,1745394645502,-500.0,0.00020597,2]
[358704782,1745394645512,-500.0,0.00020597,2]
[358704783,1745394645522,-500.0,0.00020597,2]
[358704784,1745394645531,-511.49450092,0.00020597,2]
[358704785,1745394645542,-500.0,0.00020597,2]
[358704786,1745394645551,-157.30355766,0.00020597,2]
[358704787,1745394645561,-500.0,0.00020597,2]
[358704788,1745394645571,-500.0,0.00020597,2]
[358704789,1745394645581,-500.0,0.00020597,2]
[358704790,1745394645591,-504.84861924,0.00020597,2]
[358704791,1745394645601,-500.0,0.00020597,2]
[358704792,1745394645611,-500.0,0.00020597,2]
[358704793,1745394645620,-500.0,0.00020597,2]
[358704794,1745394645630,-500.0,0.00020597,2]
[358704795,1745394645640,-500.0,0.00020597,2]
[358704797,1745394645650,-500.0,0.00020597,2]
[358704799,1745394645659,-500.0,0.00020597,2]
[358704801,1745394645668,-503.22644727,0.00020597,2]
[358704803,1745394645678,-500.0,0.00020597,2]
[358704805,1745394645693,-500.0,0.00020597,2]
[358704807,1745394645702,-500.0,0.00020597,2]
[358704809,1745394645712,-500.0,0.00020597,2]
[358704811,1745394645722,-500.0,0.00020597,2]
[358704813,1745394645731,-500.0,0.00020597,2]
[358704815,1745394645741,-502.88417489,0.00020597,2]
[358704817,1745394645751,-500.0,0.00020597,2]
[358704819,1745394645761,-593.02676707,0.00020597,2]
[358704821,1745394645770,-500.0,0.00020597,2]
[358704823,1745394645780,-500.0,0.00020597,2]
[358704825,1745394645789,-500.0,0.00020597,2]
[358704827,1745394645800,-500.0,0.00020597,2]
[358704829,1745394645810,-500.0,0.00020597,2]
[358704831,1745394645820,-500.0,0.00020597,2]
[358704833,1745394645829,-500.0,0.00020597,2]
[358704835,1745394645839,-500.0,0.00020597,2]
[358704838,1745394645849,-500.0,0.00020597,2]
[358704840,1745394645859,-500.0,0.00020597,2]
[358704842,1745394645870,-500.0,0.00020597,2]
[358704843,1745394645880,-500.0,0.00020597,2]
[358704846,1745394645890,-512.17917541,0.00020597,2]
[358704848,1745394645901,-500.0,0.00020597,2]
[358704850,1745394645910,-500.0,0.00020597,2]
[358704851,1745394645920,-510.12948291,0.00020597,2]
[358704854,1745394645931,-504.13667085,0.00020597,2]
[358704856,1745394645942,-636.79921551,0.00020597,2]
[358704858,1745394645952,-505.07482727,0.00020597,2]
[358704860,1745394645961,-500.0,0.00020597,2]
[358704862,1745394645971,-500.0,0.00020597,2]
[358704864,1745394645981,-500.0,0.00020597,2]
[358704866,1745394645991,-500.0,0.00020597,2]
[358704867,1745394646001,-500.0,0.00020597,2]
[358704870,1745394646011,-507.68178201,0.00020597,2]
[358704872,1745394646021,-504.56527113,0.00020597,2]
[358704874,1745394646031,-500.0,0.00020597,2]
[358704876,1745394646042,-500.0,0.00020597,2]
[358704878,1745394646052,-500.0,0.00020597,2]
[358704880,1745394646062,-500.0,0.00020597,2]
[358704882,1745394646071,-500.0,0.00020597,2]
[358704884,1745394646082,-500.0,0.00020597,2]
[358704886,1745394646091,-500.0,0.00020597,2]
[358704888,1745394646101,-500.0,0.00020597,2]
[358704890,1745394646113,-5.74132617,0.00020597,2]
[358704924,1745394646463,-500.0,0.00020472,2]
[358704926,1745394646473,-500.0,0.00020495,2]
[358704928,1745394646482,-494.25867383,0.00020597,2]
[358704930,1745394646491,-500.0,0.00020597,2]
[358704931,1745394646502,-500.0,0.00020597,2]
[358704932,1745394646512,-500.0,0.00020597,2]
[358704933,1745394646522,-500.0,0.00020597,2]
[358704934,1745394646531,-500.0,0.00020597,2]
[358704935,1745394646542,-500.0,0.00020597,2]
[358704936,1745394646551,-151.0,0.00020597,2]
[358704937,1745394646561,-500.0,0.00020597,2]
[358704938,1745394646570,-159.31231628,0.00020597,2]
[358704939,1745394646582,-340.68768372,0.00020597,2]
[358704940,1745394646592,-500.0,0.00020597,2]
[358704941,1745394646602,-51.6623163,0.00020597,2]
[358704942,1745394726272,250.0,0.00019516,2]
[358704943,1745394753209,568.3643501,0.00019516,2]
[358704944,1745394754861,188.19505594,0.000189,2]
[358704945,1745394768809,-250.0,0.000202,2]
[358704948,1745395089500,160.0,0.0002,14]
[358704998,1745395832127,-169.02446528,0.00020369,2]
[358705000,1745395832137,-236.63015684,0.00020411,2]
[358705002,1745395832146,-169.02446525,0.00020438,2]
[358705004,1745395832157,-900.0,0.00020466,2]
[358705005,1745395832169,-300.0,0.00020466,2]
[358705007,1745395832178,-500.0,0.00020467,2]
[358705009,1745395832187,-506.6626307,0.00020467,2]
[358705012,1745395832197,-500.0,0.00020467,2]
[358705015,1745395832206,-500.0,0.00020467,2]
[358705018,1745395832216,-500.0,0.00020467,2]
[358705021,1745395832225,-1216.98,0.00020467,2]
[358705024,1745395832235,-500.0,0.00020467,2]
[358705026,1745395832244,-1285.10669816,0.00020467,2]
[358705030,1745395832256,-474.57330184,0.00020467,2]
[358705033,1745395832266,-500.0,0.00020467,2]
[358705035,1745395832275,-500.0,0.00020467,2]
[358705038,1745395832284,-500.0,0.00020467,2]
[358705040,1745395832293,-6312.95,0.00020467,2]
[358705042,1745395832303,-504.55052414,0.00020467,2]
[358705044,1745395832313,-2489.66570306,0.00020467,2]
[358705072,1745395838429,-565.82079267,0.00020367,2]
[358705073,1745395838439,-4692.52429694,0.00020467,2]
[358705074,1745395838448,-500.0,0.00020467,2]
[358705075,1745395838458,-500.0,0.00020467,2]
[358705076,1745395838467,-500.0,0.00020467,2]
[358705077,1745395838476,-500.0,0.00020467,2]
[358705078,1745395838486,-500.0,0.00020467,2]
[358705079,1745395838495,-3057.85,0.00020467,2]
[358705080,1745395838504,-509.54689704,0.00020467,2]
[358705081,1745395838513,-500.0,0.00020467,2]
[358705082,1745395838522,-500.0,0.00020467,2]
[358705083,1745395838531,-500.0,0.00020467,2]
[358705084,1745395838541,-633.31,0.00020467,2]
[358705085,1745395838550,-453.76051607,0.00020467,2]
[358705086,1745395838561,-500.0,0.00020467,2]
[358705087,1745395838571,-500.0,0.00020467,2]
[358705088,1745395838582,-539.16,0.00020467,2]
[358705089,1745395838591,-500.0,0.00020467,2]
[358705090,1745395838601,-500.0,0.00020467,2]
[358705091,1745395838612,-500.0,0.00020467,2]
[358705092,1745395838622,-500.0,0.00020467,2]
[358705093,1745395838631,-500.0,0.00020467,2]
[358705094,1745395838640,-500.0,0.00020467,2]
[358705095,1745395838650,-500.0,0.00020467,2]
[358705096,1745395838660,-500.0,0.00020467,2]
[358705097,1745395838670,-500.0,0.00020467,2]
[358705098,1745395838681,-500.0,0.00020467,2]
[358705099,1745395838691,-500.0,0.00020467,2]
[358705100,1745395838701,-340.09939927,0.00020467,2]
[358705101,1745395838711,-500.0,0.00020467,2]
[358705102,1745395838720,-500.0,0.00020467,2]
[358705103,1745395838729,-193.67974274,0.00020467,2]
[358705104,1745395838741,-500.0,0.00020467,2]
[358705105,1745395838752,-500.0,0.00020467,2]
[358705106,1745395838761,-500.0,0.00020467,2]
[358705107,1745395838771,-500.0,0.00020467,2]
[358705108,1745395838782,-500.0,0.00020467,2]
[358705109,1745395838792,-500.0,0.00020467,2]
[358705110,1745395838801,-500.0,0.00020467,2]
[358705111,1745395838810,-500.0,0.00020467,2]
[358705112,1745395838822,-500.0,0.00020468,2]
[358705113,1745395838833,-500.0,0.00020468,2]
[358705114,1745395838843,-500.0,0.00020468,2]
[358705115,1745395838852,-766.92,0.00020468,2]
[358705116,1745395838862,-1071.65,0.00020468,2]
[358705117,1745395838872,-500.0,0.00020468,2]
[358705118,1745395838882,-500.0,0.00020468,2]
[358705119,1745395838892,-500.0,0.00020468,2]
[358705120,1745395838901,-981.78,0.00020468,2]
[358705121,1745395838910,-500.0,0.00020468,2]
[358705122,1745395838924,-500.0,0.00020468,2]
[358705123,1745395838933,-500.0,0.00020468,2]
[358705124,1745395838943,-500.0,0.00020468,2]
[358705125,1745395838953,-561.8,0.00020468,2]
[358705126,1745395838963,-500.0,0.00020468,2]
[358705127,1745395838972,-500.0,0.00020468,2]
[358705128,1745395838982,-656.96,0.00020468,2]
[358705129,1745395838991,-500.0,0.00020468,2]
[358705130,1745395839001,-500.0,0.00020468,2]
[358705131,1745395839011,-500.0,0.00020468,2]
[358705132,1745395839021,-500.0,0.00020468,2]
[358705133,1745395839031,-500.0,0.00020468,2]
[358705134,1745395839040,-500.0,0.00020468,2]
[358705135,1745395839049,-500.0,0.00020468,2]
[358705136,1745395839058,-291.51434335,0.00020468,2]
[358705137,1745395839075,-208.48565665,0.00020468,2]
[358705138,1745395839085,-500.0,0.00020468,2]
[358705139,1745395839094,-29.01434335,0.00020468,2]
[358705140,1745395839106,-470.98565665,0.00020468,2]
[358705141,1745395839115,-263.59641509,0.00020468,2]
[358705142,1745395839124,-970.46491803,0.00020468,2]
[358705143,1745395839136,-2352.35508197,0.00020468,2]
[358705144,1745395839146,-500.0,0.00020468,2]
[358705145,1745395839156,-500.0,0.00020468,2]
[358705146,1745395839165,-500.0,0.00020468,2]
[358705147,1745395839174,-500.0,0.00020468,2]
[358705148,1745395839184,-500.0,0.00020468,2]
[358705149,1745395839194,-500.0,0.00020468,2]
[358705150,1745395839203,-500.0,0.00020468,2]
[358705151,1745395839213,-154.99415413,0.00020468,2]
[358705152,1745395839222,-171.42507656,0.00020468,2]
[358705153,1745395839232,-500.0,0.00020468,2]
[358705154,1745395839242,-500.0,0.00020468,2]
[358705155,1745395839256,-271.98558565,0.00020468,2]
[358705156,1745395839272,-500.0,0.00020468,2]
[358705157,1745395839288,-500.0,0.00020468,2]
[358705158,1745395839302,-500.0,0.00020469,2]
[358705159,1745395839315,-500.0,0.00020469,2]
[358705160,1745395839328,-500.0,0.00020469,2]
[358705161,1745395839343,-500.0,0.00020469,2]
[358705162,1745395839357,-500.0,0.00020469,2]
[358705163,1745395839375,-509.87054545,0.00020469,2]
[358705164,1745395839389,-500.0,0.00020469,2]
[358705165,1745395839404,-500.0,0.00020469,2]
[358705166,1745395839419,-500.0,0.00020469,2]
[358705167,1745395839433,-500.0,0.00020469,2]
[358705168,1745395839448,-500.0,0.00020469,2]
[358705169,1745395839461,-500.0,0.00020469,2]
[358705170,1745395839477,-500.0,0.00020469,2]
[358705171,1745395839490,-500.0,0.00020469,2]
[358705172,1745395839501,-500.0,0.00020469,2]
[358705173,1745395839513,-500.0,0.00020469,2]
[358705174,1745395839525,-500.0,0.00020469,2]
[358705175,1745395839539,-500.0,0.00020469,2]
[358705176,1745395839552,-559.9,0.00020469,2]
[358705177,1745395839566,-500.0,0.00020469,2]
[358705178,1745395839581,-500.0,0.00020469,2]
[358705179,1745395839596,-500.0,0.00020469,2]
[358705180,1745395839611,-500.0,0.00020469,2]
[358705181,1745395839623,-500.0,0.00020469,2]
[358705182,1745395839634,-500.0,0.00020469,2]
[358705183,1745395839645,-500.0,0.00020469,2]
[358705184,1745395839661,-500.0,0.00020469,2]
[358705185,1745395839676,-500.0,0.00020469,2]
[358705186,1745395839688,-500.0,0.00020469,2]
[358705187,1745395839700,-500.0,0.00020469,2]
[358705188,1745395839713,-500.0,0.00020469,2]
[358705189,1745395839730,-500.0,0.00020469,2]
[358705190,1745395839746,-500.0,0.00020469,2]
[358705194,1745395839758,-514.15,0.00020469,2]
[358705197,1745395839770,-500.0,0.00020469,2]
[358705198,1745395839788,-500.0,0.00020469,2]
[358705199,1745395839802,-500.0,0.00020469,2]
[358705200,1745395839817,-500.0,0.00020469,2]
[358705201,1745395839831,-529.33,0.00020469,2]
[358705202,1745395839844,-500.0,0.00020469,2]
[358705203,1745395839856,-500.0,0.00020469,2]
[358705204,1745395839869,-500.0,0.00020469,2]
[358705205,1745395839882,-500.0,0.00020469,2]
[358705206,1745395839894,-1244.91,0.00020469,2]
[358705207,1745395839907,-500.0,0.00020469,2]
[358705208,1745395839921,-500.0,0.00020469,2]
[358705209,1745395839933,-500.0,0.00020469,2]
[358705210,1745395839946,-500.0,0.00020469,2]
[358705211,1745395839959,-500.0,0.00020469,2]
[358705212,1745395839976,-500.0,0.00020469,2]
[358705214,1745395839989,-500.0,0.00020469,2]
[358705215,1745395840001,-613.38054622,0.00020469,2]
[358705216,1745395840013,-500.0,0.00020469,2]
[358705217,1745395840026,-500.0,0.00020469,2]
[358705218,1745395840038,-500.0,0.00020469,2]
[358705219,1745395840052,-500.0,0.00020469,2]
[358705220,1745395840064,-500.0,0.00020469,2]
[358705221,1745395840076,-87.79279075,0.00020469,2]
[358705229,1745395840592,-678.67393402,0.00020467,2]
[358705230,1745395840657,-7149.25646663,0.00020467,2]
[358705243,1745395843201,-500.0,0.00020467,2]
[358705244,1745395843212,-1225.09195737,0.00020467,2]
[358705256,1745395846042,-500.0,0.00020467,2]
[358705257,1745395846053,-2885.75390497,0.00020467,2]
[358705258,1745395846169,-12930.43955015,0.00020467,2]
[358705259,1745395846179,-500.0,0.00020468,2]
[358705260,1745395846191,-576.95808165,0.00020468,2]
[358705261,1745395846201,-412.20720925,0.00020469,2]
[358705263,1745395846211,-510.32334204,0.00020469,2]
[358705264,1745395846222,-500.0,0.00020469,2]
[358705265,1745395846231,-505.92522904,0.00020469,2]
[358705266,1745395846240,-500.0,0.00020469,2]
[358705267,1745395846249,-500.0,0.00020469,2]
[358705268,1745395846259,-500.0,0.00020469,2]
[358705269,1745395846269,-385.03111167,0.00020469,2]
[358705270,1745395846278,-500.0,0.00020469,2]
[358705271,1745395846288,-500.0,0.00020469,2]
[358705272,1745395846297,-527.75374411,0.00020469,2]
[358705273,1745395846306,-500.0,0.00020469,2]
[358705274,1745395846315,-500.0,0.00020469,2]
[358705275,1745395846325,-500.0,0.00020469,2]
[358705276,1745395846335,-500.0,0.00020469,2]
[358705277,1745395846344,-500.0,0.00020469,2]
[358705278,1745395846355,-223.32772189,0.00020469,2]
[358705279,1745395846364,-506.41099269,0.00020469,2]
[358705280,1745395846373,-505.59234974,0.00020469,2]
[358705281,1745395846383,-500.0,0.00020469,2]
[358705282,1745395846392,-270.52451999,0.00020469,2]
[358705283,1745395846402,-500.0,0.00020469,2]
[358705284,1745395846411,-500.0,0.00020469,2]
[358705285,1745395846420,-205.8171759,0.00020469,2]
[358705286,1745395846432,-28.59158088,0.00020469,2]
[358705287,1745395846442,-500.0,0.00020469,2]
[358705288,1745395846451,-216.247164,0.00020469,2]
[358705289,1745395846476,-283.752836,0.00020469,2]
[358705290,1745395846486,-500.0,0.00020469,2]
[358705291,1745395846496,-500.0,0.00020469,2]
[358705292,1745395846506,-500.0,0.00020469,2]
[358705293,1745395846516,-500.0,0.00020469,2]
[358705294,1745395846527,-500.0,0.00020469,2]
[358705295,1745395846537,-500.0,0.00020469,2]
[358705296,1745395846547,-500.0,0.00020469,2]
[358705297,1745395846558,-519.57417145,0.00020469,2]
[358705298,1745395846568,-500.0,0.00020469,2]
[358705299,1745395846580,-500.0,0.00020469,2]
[358705300,1745395846590,-500.0,0.00020469,2]
[358705301,1745395846600,-500.0,0.00020469,2]
[358705302,1745395846610,-510.15617936,0.00020469,2]
[358705303,1745395846621,-529.15342518,0.00020469,2]
[358705304,1745395846632,-500.0,0.00020469,2]
[358705305,1745395846642,-500.0,0.00020469,2]
[358705306,1745395846652,-513.54613846,0.00020469,2]
[358705307,1745395846662,-500.0,0.00020469,2]
[358705308,1745395846673,-47.65086807,0.00020469,2]
[358705309,1745395853335,880.0,0.0002,2]
[358705310,1745395871934,-272.63558683,0.00020268,2]
[358705311,1745395872518,3325.0,0.0002,2]
[358705312,1745395875162,1741.2775583,0.00019627,2]
[358705313,1745395884374,-216.11316556,0.00020268,2]
[358705314,1745395899599,-94.79165881,0.00020268,2]
[358705315,1745395899622,-132.84630348,0.00020467,2]
[358705316,1745395911893,-161.72406918,0.00020467,2]
[358705317,1745395967527,-161.72406918,0.00020262,2]
[358705318,1745395967552,-52.42249512,0.00020269,2]
[358705319,1745396032454,8625.604871,0.0001947,2]
[358705320,1745396033064,-175.21546717,0.00020269,2]
[358705323,1745396662841,1013.0323373,0.00019367,2]
[358705325,1745396771089,-300.0,0.00020267,2]
[358705328,1745396878882,1318.63981359,0.00018,2]
[358705329,1745396883633,217.46883213,0.00016,2]
[358705370,1745396984203,-252.9808,0.00020265,2]
[358705398,1745397032172,-237.27020843,0.00020265,2]
[358705399,1745397032183,-151.0,0.00020357,2]
[358705400,1745397032194,-207.4,0.00020357,2]
[358705401,1745397032203,-160.0,0.00020361,2]
[358705402,1745397032212,-300.0,0.00020364,2]
[358705403,1745397032221,-900.0,0.00020364,2]
[358705404,1745397032231,-501.07549258,0.00020364,2]
[358705405,1745397032240,-500.0,0.00020364,2]